Cogmind - Beta 12 @@@ ROGUE MODE // 2023.04.15 @ 19:34:23 Player: Mr Goldstein Result: Destroyed by G-34 Mercenary with Small Laser Performance ------------- Evolutions (0) 0 Regions Visited (1) 200 Robots Destroyed (50) 250 Value Destroyed (874) 874 Prototype IDs (4) 80 Alien Tech Used (0) 0 Bonus (0) 0 TOTAL SCORE: 1404 Bonus ------- None Cogmind --------- Core Integrity 0/250 Matter 297/300 Energy 249/250 System Corruption 0% Temperature Cool (6) Movement Rolling (200) Ox8 Location -10/Materials Parts ------- > --- POWER (1) -------- Ion Engine > --- PROPULSION (2) --- Wheel > --- UTILITY (2) ------ Huge Storage Unit Targeting Computer > --- WEAPON (2) ------- Light Assault Rifle > --- INVENTORY (25) --- Ion Engine Light Nuclear Core Wheel Wheel Compact Wheel Compact Wheel Flight Unit Heat Sink Improved Heat Sink High-capacity Battery (250) Medium Matter Pod (100) Visual Processing Unit Targeting Computer Hacking Suite Tractor Beam EM Pulse Gun EM Pulse Gun EM Pulse Gun EM Pulse Gun Medium Laser Small Laser Small Laser Particle Gun Light Assault Rifle Mining Claw Peak State ------------ > --- POWER ------------ Light Ion Engine > --- PROPULSION ------- Wheel Wheel > --- UTILITY ---------- Huge Storage Unit Targeting Computer > --- WEAPON ----------- Assault Rifle Assault Rifle > --- INVENTORY -------- Ion Engine Light Ion Engine Light Nuclear Core Wheel Wheel Wheel Compact Wheel Compact Wheel Flight Unit Improved Heat Sink High-capacity Battery Small Matter Pod Visual Processing Unit Hacking Suite Tractor Beam EM Pulse Gun EM Pulse Gun EM Pulse Gun Medium Laser Particle Gun Light Assault Rifle Light Assault Rifle [Rating: 10] Favorites ----------- Power Light Ion Engine Engine Light Ion Engine Propulsion Wheel Wheel Wheel Utility Huge Storage Unit Device Tractor Beam Storage Huge Storage Unit Processor Targeting Computer Weapon Light Assault Rifle Energy Gun EM Pulse Gun Ballistic Gun Light Assault Rifle Build | -11 -10 ------- Run | Jun Mat Slots Evolved . | . . Power . | . . Propulsion . | . . Utility . | . . Weapon . | . . Parts Attached 20 | 6 14 Power 3 | 1 2 Engine 3 | 1 2 Core . | . . Reactor . | . . Propulsion 7 | 2 5 Treads . | . . Leg . | . . Wheel 7 | 2 5 Hover . | . . Flight . | . . Utility 4 | 1 3 Device 1 | . 1 Storage 2 | 1 1 Processor 1 | . 1 Hackware . | . . Protection . | . . Artifact . | . . Weapon 6 | 2 4 Energy Gun 2 | 2 . Energy Cannon . | . . Ballistic Gun 4 | . 4 Ballistic Cannon . | . . Launcher . | . . Special Weapon . | . . Impact Weapon . | . . Slashing Weapon . | . . Piercing Weapon . | . . Special Melee Weapon . | . . Unidentified Prototypes . | . . Parts Lost 11 | . 11 Power 2 | . 2 Propulsion 6 | . 6 Utility . | . . Weapon 3 | . 3 Highest Loss Streak 2 | . 2 To Critical Strikes . | . . Average Slot Usage (%) 97 | . 97 Engine 12 | . 12 Wheel 27 | . 27 Storage 14 | . 14 Processor 12 | . 12 Energy Gun 1 | . 1 Ballistic Gun 26 | . 26 Naked Turns . | . . Heaviest Build 88 | 12 88 Greatest Support 20 | 20 20 Greatest Overweight (x) 8 | 1 8 Average Overweight (x) 3 | . 3 Largest Inventory Capacity 25 | 8 25 Average Capacity 24 | 6 24 Most Carried 25 | 5 25 Average Carried 19 | 2 20 Final Capacity 25 | 8 25 Final Carried 25 | 2 25 Class Distribution -------------------- 70% | Mutant 29% | Scavenger-Mutant Dominant Class ---------------- Mutant | -10/Materials Resources | -11 -10 ----------- Run | Jun Mat Matter Collected 1077 | 229 848 Remotely 40 | . 40 Salvage Created 1437 | . 1437 Parts 117 | . 117 Haulers Intercepted 2 | . 2 Recyclers Shooed 3 | . 3 Parts Field Recycled . | . . Retrieved Matter . | . . Parts Self-Destructed . | . . Prevented . | . . Kills | -11 -10 ------- Run | Jun Mat Combat Hostiles Destroyed 25 | . 25 Guns 25 | . 25 Classes Destroyed 8 | . 8 Worker 10 | . 10 Builder 7 | . 7 Hauler 2 | . 2 Recycler 1 | . 1 Operator 2 | . 2 Watcher 3 | . 3 Swarmer 6 | . 6 Grunt 19 | . 19 Best Kill Streak 4 | . 4 Combat Bots Only 3 | . 3 Max Kills in Single Turn 1 | . 1 Gunslinging . | . . Exploded . | . . Melee . | . . Uniques/NPCs Destroyed . | . . Combat | -11 -10 -------- Run | Jun Mat Damage Taken 1010 | . 1010 Core 256 | . 256 Absorbed by Shields . | . . Core Remaining (%) 100 | 100 . Volleys Fired 152 | . 152 Largest 2 | . 2 Hottest 80 | . 80 Shots Fired 300 | . 300 Gun 300 | . 300 Cannon . | . . Launcher . | . . Special . | . . Kinetic 292 | . 292 Thermal . | . . Explosive . | . . Electromagnetic 8 | . 8 Robot Hit Streak 16 | . 16 Robot Miss Streak 4 | . 4 Penetration Max . | . . Secondary Targets 2 | . 2 Max Gunslinging Chain 1 | . 1 Shots Hit Robots 212 | . 212 Core Hits 78 | . 78 Critical Kills . | . . Critical Parts Destroyed . | . . Critical Strikes . | . . Melee Attacks . | . . Impact . | . . Slashing . | . . Piercing . | . . Sneak Attacks . | . . Combat Hostiles . | . . Follow-up Attacks . | . . Damage Inflicted 2136 | . 2136 Guns 2136 | . 2136 Cannons . | . . Explosions . | . . Melee . | . . Ramming . | . . Kinetic 2055 | . 2055 Thermal . | . . Explosive . | . . Electromagnetic 81 | . 81 Impact . | . . Slashing . | . . Piercing . | . . Highest Corruption . | . . Average Corruption . | . . Corruption Purged . | . . Corruption Blocked . | . . Overload Shots . | . . Overflow Damage 56 | . 56 Projectiles . | . . Explosions 56 | . 56 Melee . | . . Knockbacks . | . . Impact . | . . Kinetic . | . . Secondary . | . . Self-Inflicted Damage 75 | . 75 Shots 1 | . 1 Rammed . | . . Targets Rammed . | . . Kicked . | . . Crushed . | . . Highest Temperature 54 | . 54 Average Temperature 10 | . 10 Received Heat Transfer 399 | . 399 Siege Activations . | . . Robots Corrupted . | . . Combat Hostiles . | . . Parts Fried . | . . Impact Corruptions . | . . Robots Melted . | . . Combat Hostiles . | . . Parts Melted . | . . Heat Transferred . | . . Parts Sabotaged . | . . Parts Stolen . | . . Parts Stripped . | . . Power Chain Reactions . | . . Missiles Intercepted . | . . Alert | -11 -10 ------- Run | Jun Mat Peak Influence 335 | . 335 Initial . | . . Average 119 | . 122 Maximum Alert Level 1 | . 1 Low Security (%) 85 | 100 85 Level 1 14 | . 14 Level 2 . | . . Level 3 . | . . Level 4 . | . . Level 5 . | . . High Security . | . . Max Security . | . . Squads Dispatched 10 | . 10 Investigation 8 | . 8 Extermination . | . . Reinforcement 2 | . 2 Assault . | . . Garrison . | . . Intercept . | . . Searches Triggered . | . . Construction Impeded . | . . Haulers Reinforced . | . . Active Scanning Responses . | . . Cargo Convoy Interrupts . | . . Stealth | -11 -10 --------- Run | Jun Mat Distress Signals . | . . Communications Jammed . | . . Distress Signals . | . . Times Spotted 38 | . 38 Peak Tracking Total 3 | . 3 Tactical Retreats 2 | . 2 Traps | -11 -10 ------- Run | Jun Mat Traps Triggered 1 | . 1 Indirectly . | . . Trap Hack Attempts . | . . Triggered . | . . Disarmed . | . . Reprogrammed . | . . Reused . | . . Traps Extracted . | . . Installed . | . . Triggered 1 | . 1 Machines | -11 -10 ---------- Run | Jun Mat Machines Disabled 2 | . 2 Max in Single Turn 2 | . 2 Machines Repaired . | . . Machines Sabotaged . | . . Overloaded Fab Kills . | . . Hacking | -11 -10 --------- Run | Jun Mat Machines Accessed 8 | . 8 Terminals 6 | . 6 Fabricators . | . . Repair Stations . | . . Recycling Units 2 | . 2 Scanalyzers . | . . Garrison Access . | . . Total Hacks 23 | . 23 Successful 10 | . 10 Failed 13 | . 13 Catastrophic 1 | . 1 Database Lockouts . | . . Manual 9 | . 9 Terminals 20 | . 20 Fabricators . | . . Repair Stations . | . . Recycling Units 3 | . 3 Scanalyzers . | . . Garrison Access . | . . Terminal Hacks 4 | . 4 Prototype ID Bank 2 | . 2 Alert Level 1 | . 1 Hauler Manifests 1 | . 1 Fabricator Hacks . | . . Repair Station Hacks . | . . Recycling Unit Hacks . | . . Scanalyzer . | . . Garrison Access Hacks . | . . Unauthorized Hacks 6 | . 6 Terminals 4 | . 4 Search 4 | . 4 Fabricators . | . . Repair Stations . | . . Recycling Units 2 | . 2 Tunnel 2 | . 2 Scanalyzers . | . . Garrison Access . | . . Data Cores Recovered . | . . Used . | . . Hacking Detections 5 | . 5 Full Trace Events 1 | . 1 Feedback Events . | . . Feedback Blocked . | . . Robot Schematics Acquired . | . . Robots Built . | . . Authchips . | . . Time . | . . Total Robot Build Rating . | . . Part Schematics Acquired . | . . Parts Built . | . . Authchips . | . . Time . | . . Total Part Build Rating . | . . Parts Repaired . | . . Time . | . . Parts Recycled . | . . Recycled Matter . | . . Retrieved Matter . | . . Retrieved Components . | . . Parts Scanalyzed . | . . Part Schematics Acquired . | . . Parts Damaged . | . . Bothacking | -11 -10 ------------ Run | Jun Mat Used RIF Installer . | . . Robots Hacked . | . . Non-combat . | . . Combat . | . . Robot Hacks Applied . | . . Relay Couplers Released . | . . Fabnet Peak Effective % . | . . Robots Rewired . | . . Allies Hacked . | . . Hacks Repelled . | . . Allies | -11 -10 -------- Run | Jun Mat Total Allies . | . . Largest Group . | . . Highest-Rated Group . | . . Highest-Rated Ally . | . . Total Orders . | . . Ally Attacks . | . . Total Damage . | . . Kills . | . . Allies Corrupted . | . . Allies Melted . | . . Intel | -11 -10 ------- Run | Jun Mat Robot Analysis Total . | . . Derelict Logs Recovered . | . . Drone Launches . | . . Drone Recoveries . | . . Exploration | -11 -10 ------------- Run | Jun Mat Turns Passed 2859 | 60 2799 Spaces Moved 1454 | 57 1397 Core 14 | 14 . Treads . | . . Legs . | . . Wheels 1440 | 43 1397 Hover . | . . Flight . | . . Fastest Speed 50 | 50 80 Average Speed 136 | 81 139 Slowest Speed 200 | 95 200 Overloaded Moves . | . . Propulsion Burnouts . | . . Robots Hopped . | . . Cave-ins Triggered . | . . Exploration Rate (%) 50 | 4 97 Regions Visited 1 Branch Regions . Pre-discovered Areas 2 | . 2 Known Exits Taken . | . . Unknown Exits Taken 1 | 1 . Scrap Searched . | . . Spaces Dug . | . . Terrain Destroyed 42 | . 42 Melee . | . . Projectile . | . . AOE 42 | . 42 Terrain Rammed . | . . Walls Destroyed . | . . Machines Disabled . | . . Actions | -11 -10 --------- Run | Jun Mat Total 2053 | 70 1983 Wait 377 | . 377 Move 1453 | 56 1397 Hop . | . . Pick Up 46 | 8 38 Fast Attach . | . . Attach 17 | 6 11 Detach . | . . Swap 3 | . 3 Drop 5 | . 5 Fire 152 | . 152 Melee . | . . Ram . | . . Kick . | . . Crush . | . . Escape Stasis . | . . Rewire . | . . Trap . | . . Miscellaneous . | . . Route ------- -11/Junkyard -10/Materials (discovered 4 exits: [*Mat x3] / [*Min]) History --------- Turn | Location | Event 9 | -11/Junkyard | Discovered new exit (range 15) 61 | -11/Junkyard | Entered Materials 165 | -10/Materials | Discovered new exit (range 14) 317 | -10/Materials | Build established: Mutant 819 | -10/Materials | Discovered new exit (range 16) 1069 | -10/Materials | Discovered new exit (range 16) 2334 | -10/Materials | Build established: Scavenger-Mutant 2400 | -10/Materials | Core integrity fell below 50% 2436 | -10/Materials | Discovered new exit (range 8) 2615 | -10/Materials | Core integrity fell below 20% 2860 | -10/Materials | Destroyed by G-34 Mercenary with Small Laser Last Messages --------------- >>Force(Tunnel) DISCOVERED[-9/Materials] 02586_ ALERT: Suspicious activity at Recycling Unit M002. Dispatching Investigation squad. 02621_ G-34 Mercenary destroyed. 02648_ Acquired 26 matter. 02672_ K-01 Serf collects debris. 02713_ Acquired 2 matter. 02750_ O-16 Technician destroyed. 02751_ Acquired 4 matter. 02810_ Connecting with Terminal... >>Force(Search) SEARCH_COMPLETE[6] DISCOVERED[5xTerminal] DISCOVERED[1xRepair Station] COORDINATES_EXTRACTED 02810_ ALERT: Suspicious activity at Terminal M004. Dispatching Investigation squad. 02852_ Wheel destroyed. 02855_ Lgt. Assault Rifle destroyed. Map ----- +----------------------------------------------------+ | ????????# #??????# """ # #? | | ????????# < #??????# """ # < # """ | | ????????# #??????# """ # # R" | | ????????# #??????# # + """ | | ????????## ##??????# """ # # | | ?########## ########## """ +^^^###### | | ?? # # # """ # #????? | | ? """ """ + + """" # # ###### | | # """ """ # # """" # """ # # | | # """ """ # # """" # """ # # | | # # # # """ # # | | # # # ! """" # # #=%* | | # # # """" ######## + % | | # + + """ " # # | | ??######### # " ! # # | | ??#######?# #######""######## # | | # !!! # ######## # # # | | # !! + ##### +% ###### | | # !! # + # | | # ??# ##### !# | | ?########## ##### # # % | | ?# T # #???### = #######+## | | ?? # g#????#########?????# % | | ??? # ##g############???????# " | | ??? """ # # #???????# | | ?? """"" # #@ #???????# | | ?? """"" # # """ """ ""#???????# " | | ?# """"" + / """ """ T"#???????# = | | ?# """ # # """ """ ""#???????#### | | ?# ! + # #??????????? | | ?###########/################??????????? | | ??????# #??????????????????????? | | ??????#!! #????????????????####### | | ??????#! #????????????????# | | ??????# #????????????????# | | ??????#%"" """ #????????????????# """ | | ??????#="Y """ #????????????????# """ | | ??????#=""* """ #????????????????# """ | | ??????#%=%% #????????######??# | | ??????#+#########????????# #??#+##+## | | ??????#!#????????????????# #??# #? | | ??????#[#????????????????# #??# #? | | ??????#*#????????????????# #### ## | | ??????# #????????????????# + | | ????### ##########???????# ###### | | ????# # #???????# # | | ????# # T #???????# # " | | ????# T +% #???????# # "T | | ????# #% #???????###### | | ????# # #????????????# #### | +----------------------------------------------------+ Best States ------------- Heat Dissipation 25 Energy Generation 10 Energy Capacity 250 Matter Stores 300 Matter Capacity 300 Sight Range 16 Terrain Scan Density 10 Evasion (%) 50 Targeting Accuracy 5 Item Schematics ----------------- None Robot Schematics ------------------ None Fabricated ------------ Nothing Alien Tech Used ----------------- None Achievements -------------- None Challenges ------------ None Game ------ Seed TrapPropulsionMatter Manual? 0 Play Time 00:20:06 Cumulative 107.6 hours Start 2023.04.15 @ 19:18:06 End 2023.04.15 @ 19:34:23 Sessions 1 Manual Loads 0 Difficulty Rogue Special Mode None Game No. 313 Rogue 313 Adventurer 0 Explorer 0 Win Type - Total 4 Types 4/0/0/0/0/0/0/0/0 Lore% 57 Gallery% 58 Achievement% 52 Wizard Run 0 Options --------- ASCII 0 Keyboard 0 Movement Arrows Keybinds 0 Fullscreen 1 Font 12/Smallcaps Map View 83x54 Tactical HUD 1 Map Filters NONE Filters NONE Steam 1 RUN: 3059e049-586e-4a00-a69b-b9ecf808e02f